bitfinex/quotes_SOLUSD_20230120
["timestamp","ask_amount","ask_price","bid_price","bid_amount"]
[1674182797123,151.4208,21.394,21.378,10.0]
[1674182797339,151.4208,21.394,21.379,17.0]
[1674182798281,151.4208,21.394,21.38,10.0]
[1674182798493,151.4208,21.394,21.381,17.0]
[1674182798922,151.4208,21.394,21.38,10.0]
[1674182799323,161.4208,21.394,21.38,10.0]
[1674182799748,151.4208,21.394,21.38,10.0]
[1674182799958,151.4208,21.394,21.381,17.0]
[1674182800693,151.4208,21.394,21.376,10.0]
[1674182800903,1.92,21.393,21.368,10.0]
[1674182801114,35.06,21.392,21.368,10.0]
[1674182801435,11.92,21.391,21.373,20.0]
[1674182801647,35.07,21.39,21.37,20.0]
[1674182801859,11.92,21.389,21.37,20.0]
[1674182802072,35.07,21.388,21.37,20.0]
[1674182802292,35.07,21.388,21.371,10.0]
[1674182802504,35.07,21.388,21.372,20.0]
[1674182803007,35.07,21.388,21.373,10.0]
[1674182803215,1.92,21.389,21.373,10.0]
[1674182803541,1.92,21.389,21.374,17.0]
[1674182803542,11.92,21.389,21.374,17.0]
[1674182804597,11.92,21.389,21.373,17.0]
[1674182805228,10.0,21.389,21.373,17.0]
[1674182808077,35.07,21.39,21.373,17.0]
[1674182808286,35.06,21.392,21.374,10.0]
[1674182808486,11.92,21.391,21.376,10.0]
[1674182809030,11.92,21.391,21.377,17.0]
[1674182809225,10.0,21.391,21.377,17.0]
[1674182809561,35.06,21.392,21.377,17.0]
[1674182810083,45.06,21.393,21.377,17.0]
[1674182810411,1.92,21.392,21.377,17.0]
[1674182810715,35.06,21.393,21.377,17.0]
[1674182810902,126.3608,21.394,21.377,17.0]
[1674182811111,161.4208,21.394,21.375,17.0]
[1674182811322,10.0,21.393,21.375,17.0]
[1674182814161,10.0,21.391,21.375,17.0]
[1674182816289,0.96,21.39,21.368,10.0]
[1674182816481,10.0,21.388,21.369,20.0]
[1674182817113,10.0,21.388,21.37,10.0]
[1674182817316,10.0,21.388,21.371,20.0]
[1674182817526,10.0,21.388,21.372,17.0]
[1674182817734,10.0,21.388,21.373,20.0]
[1674182817946,10.0,21.388,21.374,17.0]
[1674182818700,10.0,21.388,21.374,14.5]
[1674182820783,35.07,21.39,21.374,14.5]
[1674182820995,35.06,21.393,21.375,1.92]
[1674182821215,35.06,21.393,21.376,10.0]
[1674182821426,35.06,21.393,21.377,17.0]
[1674182821741,116.3608,21.394,21.379,10.0]
[1674182822146,151.4208,21.394,21.38,17.0]
[1674182822800,151.4208,21.394,21.381,10.0]
[1674182823022,151.4208,21.394,21.382,17.0]
[1674182823317,10.0,21.393,21.382,17.0]
[1674182823533,10.0,21.393,21.38,17.0]
[1674182823741,10.0,21.391,21.38,17.0]
[1674182824979,10.0,21.391,21.371,10.0]
[1674182825195,10.0,21.391,21.374,1.92]
[1674182825737,10.0,21.391,21.374,11.92]
[1674182826051,10.0,21.391,21.375,17.0]
[1674182827621,10.0,21.391,21.376,1.92]
[1674182828468,45.06,21.393,21.376,1.92]
[1674182828664,35.06,21.393,21.376,39.70774574]
[1674182828869,35.06,21.393,21.378,10.0]
[1674182829085,35.06,21.393,21.38,10.0]
[1674182829513,35.06,21.393,21.381,17.0]
[1674182829931,45.06,21.393,21.379,17.96]
[1674182830124,10.0,21.392,21.38,0.96]
[1674182832234,10.0,21.393,21.38,0.96]
[1674182833301,151.4208,21.394,21.38,0.96]
[1674182833827,126.3608,21.394,21.38,0.96]
[1674182834036,151.4208,21.394,21.38,10.96]
[1674182834242,151.4208,21.394,21.381,17.0]
[1674182834459,45.06,21.394,21.381,17.0]
[1674182834665,35.05,21.4,21.382,39.70774574]
[1674182834853,45.04,21.404,21.383,10.0]
[1674182835063,35.04,21.404,21.384,18.92]
[1674182835288,35.04,21.404,21.385,10.0]
[1674182835503,35.04,21.404,21.386,18.92]
[1674182835699,35.04,21.404,21.387,10.0]
[1674182836125,35.03,21.412,21.388,38.92]
[1674182836330,143.3096,21.412,21.388,57.81387287]
[1674182836547,10.0,21.411,21.389,28.89387287]
[1674182836765,10.0,21.409,21.391,10.0]
[1674182836964,35.04,21.408,21.393,10.0]
[1674182837604,35.04,21.408,21.394,17.0]
[1674182837822,35.03,21.41,21.395,0.96]
[1674182838019,10.0,21.411,21.396,0.96]
[1674182838229,10.0,21.411,21.396,17.96]
[1674182838881,10.0,21.411,21.396,17.0]
[1674182839087,10.0,21.411,21.396,35.89387287]
[1674182839614,0.96,21.41,21.391,10.0]
[1674182839824,36.95,21.41,21.392,20.0]
[1674182840015,10.0,21.409,21.392,20.0]
[1674182840557,10.0,21.409,21.393,18.89387287]
[1674182840766,10.0,21.409,21.393,37.78774574]
[1674182841080,35.03,21.41,21.394,17.0]
[1674182841297,35.03,21.411,21.396,10.0]
[1674182841502,35.03,21.411,21.397,17.0]
[1674182841690,35.03,21.411,21.398,10.0]
[1674182841902,108.2796,21.412,21.399,17.0]
[1674182842111,143.3096,21.412,21.399,17.0]
[1674182842346,10.0,21.411,21.399,17.0]
[1674182842536,10.0,21.411,21.373,59.4456]
[1674182842746,35.03,21.41,21.39,18.89387287]
[1674182842957,10.0,21.409,21.39,18.89387287]
[1674182843273,10.0,21.409,21.391,20.0]
[1674182843494,10.0,21.409,21.393,18.89387287]
[1674182843909,10.0,21.407,21.393,18.89387287]
[1674182844647,10.0,21.407,21.392,18.89387287]
[1674182844850,10.0,21.407,21.393,20.0]
[1674182845274,10.0,21.409,21.393,20.0]
[1674182845275,10.0,21.409,21.394,18.89387287]
[1674182845693,35.03,21.41,21.394,18.89387287]
[1674182845919,35.03,21.41,21.396,10.0]
[1674182846131,35.03,21.41,21.397,17.0]
[1674182846443,35.03,21.411,21.397,17.0]
[1674182846655,143.3096,21.412,21.397,35.89387287]
[1674182846864,143.3096,21.412,21.398,10.0]
[1674182847067,143.3096,21.412,21.397,35.89387287]
[1674182847068,143.3096,21.412,21.399,17.0]
[1674182847471,10.0,21.411,21.398,17.0]
[1674182850861,143.3096,21.412,21.398,17.0]
[1674182851046,108.2796,21.412,21.399,18.89387287]
[1674182851257,45.03,21.413,21.4,37.0]
[1674182851474,10.0,21.413,21.4,37.0]
[1674182851701,10.0,21.413,21.4,55.89387287]
[1674182852105,35.03,21.415,21.4,55.89387287]
[1674182852316,45.02,21.416,21.401,10.0]
[1674182852642,45.02,21.416,21.402,37.0]
[1674182853998,35.02,21.416,21.403,10.0]
[1674182854204,10.0,21.424,21.404,17.0]
[1674182854419,35.01,21.423,21.404,17.0]
[1674182854642,10.0,21.422,21.404,17.0]
[1674182854842,35.02,21.421,21.404,17.0]
[1674182855169,35.02,21.421,21.405,10.0]
[1674182855383,35.02,21.421,21.406,17.0]
[1674182855570,10.0,21.42,21.406,35.89387287]
[1674182856728,10.0,21.42,21.406,17.0]
[1674182862305,35.02,21.419,21.406,17.0]
[1674182865052,10.0,21.416,21.406,17.0]
[1674182865473,35.02,21.419,21.406,17.0]
[1674182865662,10.0,21.42,21.407,0.96]
[1674182866415,10.0,21.42,21.406,35.89387287]
[1674182866726,10.0,21.416,21.406,17.0]
[1674182867148,10.0,21.416,21.405,18.89387287]
[1674182868525,10.0,21.416,21.406,17.0]
[1674182868834,10.0,21.416,21.375,78.8445337]
[1674182868835,0.96,21.415,21.39,7.33671928]
[1674182869053,10.0,21.413,21.399,18.89387287]
[1674182869228,35.03,21.412,21.399,18.89387287]
[1674182869670,10.0,21.413,21.399,18.89387287]
[1674182869882,45.03,21.413,21.399,18.89387287]
[1674182870201,0.96,21.412,21.391,10.0]
[1674182870513,10.0,21.41,21.395,133.53737287]
[1674182870829,35.04,21.409,21.395,133.53737287]
[1674182871444,35.04,21.409,21.396,0.96]
[1674182871685,35.04,21.409,21.397,0.96]
[1674182871865,10.0,21.41,21.398,0.96]
[1674182872185,10.0,21.41,21.398,17.0]
[1674182872399,45.03,21.41,21.398,17.0]
[1674182875040,45.03,21.41,21.396,35.89387287]
[1674182875689,45.03,21.41,21.397,18.89387287]
[1674182875903,45.03,21.41,21.398,17.0]
[1674182876299,10.0,21.414,21.398,35.89387287]
[1674182876835,10.0,21.412,21.399,18.89387287]
[1674182877048,10.0,21.412,21.4,17.0]
[1674182877761,10.0,21.412,21.399,18.89387287]
[1674182877976,0.96,21.411,21.391,10.0]
[1674182878185,10.0,21.409,21.392,38.92]
[1674182878404,10.0,21.409,21.396,18.89387287]
[1674182878612,10.0,21.407,21.397,17.0]
[1674182879565,45.04,21.409,21.397,17.0]
[1674182881449,45.04,21.409,21.393,10.0]
[1674182881661,1.92,21.408,21.394,20.0]
[1674182881884,35.04,21.407,21.394,20.0]
[1674182882086,11.92,21.406,21.394,20.0]
[1674182882298,11.92,21.406,21.389,20.0]
[1674182882836,46.96,21.406,21.389,20.0]
[1674182883040,46.96,21.406,21.39,10.0]
[1674182883241,46.96,21.406,21.391,20.0]
[1674182884199,46.96,21.406,21.392,17.0]
[1674182884388,46.96,21.406,21.393,20.0]
[1674182884594,46.96,21.406,21.394,17.0]
[1674182884910,46.96,21.406,21.395,20.0]
[1674182887331,45.04,21.406,21.395,20.0]
[1674182887542,10.0,21.406,21.396,17.0]
[1674182890188,1.92,21.405,21.395,20.0]
[1674182890404,1.92,21.405,21.39,20.0]
[1674182890621,1.92,21.405,21.391,17.0]
[1674182890816,1.92,21.405,21.392,20.0]
[1674182891143,1.92,21.405,21.393,17.0]
[1674182891566,1.92,21.405,21.394,20.0]
[1674182892088,0.96,21.405,21.395,17.0]
[1674182892304,45.04,21.406,21.395,17.0]
[1674182892611,10.0,21.406,21.395,17.0]
[1674182893655,35.03,21.413,21.396,10.96]
[1674182893872,35.03,21.413,21.397,17.0]
[1674182894713,35.03,21.413,21.398,1.92]
[1674182895243,35.03,21.413,21.397,17.0]
[1674182895456,35.03,21.413,21.396,17.0]
[1674182895766,35.03,21.413,21.397,1.92]
[1674182896372,35.03,21.415,21.396,17.0]
[1674182896585,35.03,21.415,21.397,0.96]
[1674182896813,35.03,21.413,21.397,1.92]
[1674182897026,35.03,21.415,21.397,1.92]
[1674182897230,35.03,21.415,21.395,17.0]
[1674182897451,35.03,21.415,21.394,20.0]
[1674182897452,1.92,21.411,21.394,20.0]
[1674182897632,1.92,21.411,21.39,20.0]
[1674182897633,35.03,21.41,21.39,20.0]
[1674182897842,18.92,21.409,21.389,20.0]
[1674182898056,35.04,21.408,21.389,20.0]
[1674182898284,11.92,21.407,21.389,20.0]
[1674182898490,35.04,21.406,21.389,20.0]
[1674182898703,10.0,21.404,21.389,20.0]
[1674182899108,10.0,21.404,21.39,17.0]
[1674182899329,10.0,21.404,21.391,20.0]
[1674182899539,10.0,21.404,21.392,17.0]
[1674182899868,10.0,21.404,21.393,20.0]
[1674182900501,10.0,21.404,21.394,17.0]
[1674182900700,10.0,21.404,21.395,20.0]
[1674182901628,10.0,21.404,21.389,20.0]
[1674182901841,10.0,21.404,21.39,17.0]
[1674182902069,10.0,21.404,21.391,20.0]
[1674182902284,10.0,21.404,21.392,17.0]
[1674182902805,10.0,21.404,21.393,20.0]
[1674182903421,10.0,21.404,21.394,17.0]
[1674182903637,10.0,21.404,21.395,20.0]
[1674182904690,10.0,21.404,21.389,30.0]
[1674182905017,10.0,21.404,21.39,18.92]
[1674182905215,10.0,21.404,21.391,20.0]
[1674182905429,10.0,21.404,21.392,17.0]
[1674182905642,10.0,21.404,21.393,20.0]
[1674182905963,10.0,21.404,21.394,17.0]
[1674182906277,10.0,21.404,21.395,20.0]
[1674182906475,10.0,21.404,21.396,17.0]
[1674182906880,10.0,21.404,21.394,17.0]
[1674182907094,10.0,21.404,21.395,20.0]
[1674182907319,10.0,21.404,21.396,17.0]
[1674182912492,10.0,21.404,21.395,20.0]
[1674182912692,10.0,21.404,21.391,20.0]
[1674182914046,10.0,21.404,21.392,17.0]
[1674182914259,10.0,21.404,21.393,20.0]
[1674182914485,10.0,21.404,21.394,17.0]
[1674182914697,10.0,21.404,21.395,20.0]
[1674182915644,10.0,21.404,21.396,17.0]
[1674182916269,10.0,21.404,21.395,20.0]
[1674182916474,10.0,21.404,21.391,20.0]
[1674182916688,10.0,21.404,21.392,17.0]
[1674182916903,10.0,21.404,21.393,20.0]
[1674182917097,10.0,21.404,21.394,17.0]
[1674182917309,10.0,21.404,21.395,20.0]
[1674182918797,10.0,21.404,21.371,23.58440075]
[1674182919109,10.0,21.404,21.381,18.89387287]
[1674182919110,10.0,21.402,21.381,18.89387287]
[1674182919337,10.0,21.4,21.381,18.89387287]
[1674182919535,36.01,21.399,21.381,18.89387287]
[1674182919736,10.96,21.398,21.381,18.89387287]
[1674182919940,0.96,21.397,21.377,10.0]
[1674182920281,10.96,21.396,21.377,18.89387287]
[1674182920464,0.96,21.395,21.377,18.89387287]
[1674182920679,0.96,21.394,21.378,20.0]
[1674182920888,0.96,21.394,21.377,18.89387287]
[1674182921111,10.96,21.394,21.376,114.533]
[1674182921323,0.96,21.393,21.376,114.533]
[1674182921538,0.96,21.392,21.376,114.533]
[1674182921745,0.96,21.391,21.376,114.533]
[1674182921965,0.96,21.39,21.376,114.533]
[1674182922482,0.96,21.39,21.373,118.4514]
[1674182922896,0.96,21.389,21.371,18.89387287]
[1674182923092,0.96,21.388,21.365,26.44988334]
[1674182923307,36.03,21.387,21.369,18.89387287]
[1674182923514,0.96,21.386,21.369,18.89387287]
[1674182923720,0.96,21.385,21.369,18.89387287]
[1674182924164,0.96,21.384,21.37,20.0]
[1674182924383,0.96,21.384,21.371,17.0]
[1674182924584,0.96,21.384,21.372,20.0]
[1674182924800,0.96,21.384,21.373,17.0]
[1674182925326,45.07,21.389,21.374,20.0]
[1674182925518,45.07,21.389,21.375,17.0]
[1674182925519,10.0,21.389,21.375,17.0]
[1674182925947,35.06,21.393,21.375,17.0]
[1674182926161,158.1103,21.395,21.376,11.92]
[1674182926482,123.0503,21.395,21.377,17.0]
[1674182926675,123.0503,21.395,21.378,1.92]
[1674182927306,123.0503,21.395,21.378,11.92]
[1674182927621,123.0503,21.395,21.379,17.0]
[1674182928469,123.0503,21.395,21.378,18.92]
[1674182932383,123.0503,21.395,21.374,20.0]
[1674182932593,1.92,21.393,21.373,18.89387287]
[1674182932783,1.92,21.393,21.374,20.0]
[1674182933212,35.06,21.392,21.368,20.0]
[1674182933422,1.92,21.391,21.368,20.0]
[1674182933639,10.0,21.39,21.368,20.0]
[1674182933849,1.92,21.389,21.367,10.0]
[1674182934171,1.92,21.389,21.368,20.96]
[1674182934359,1.92,21.389,21.369,17.96]
[1674182934571,1.92,21.389,21.37,20.96]
[1674182934886,1.92,21.389,21.371,17.0]
[1674182935099,1.92,21.389,21.372,0.96]
[1674182935314,1.92,21.389,21.372,20.96]
[1674182935527,1.92,21.389,21.373,17.0]
[1674182935734,1.92,21.389,21.374,20.0]
[1674182935945,1.92,21.389,21.375,17.0]
[1674182937317,0.96,21.389,21.375,17.0]
[1674182937540,10.0,21.39,21.375,17.0]
[1674182937937,35.06,21.394,21.376,0.96]
[1674182938158,123.0503,21.395,21.377,0.96]
[1674182938471,123.0503,21.395,21.378,18.89387287]
[1674182938683,10.0,21.394,21.379,17.96]
[1674182939100,10.0,21.394,21.38,0.96]
[1674182939330,10.0,21.394,21.381,0.96]
[1674182941637,10.0,21.394,21.379,35.89387287]
[1674182941941,45.06,21.394,21.37,5.28026594]
[1674182942159,0.96,21.393,21.376,18.89387287]
[1674182942574,0.96,21.392,21.376,18.89387287]
[1674182942788,10.0,21.39,21.371,20.0]
[1674182942997,0.96,21.389,21.37,20.0]
[1674182943405,1.92,21.389,21.37,38.89387287]
[1674182943616,0.96,21.389,21.37,38.89387287]
[1674182943824,0.96,21.388,21.37,20.0]
[1674182944042,0.96,21.388,21.371,18.89387287]
[1674182944252,10.96,21.388,21.372,20.0]
[1674182945741,10.96,21.388,21.373,17.0]
[1674182946787,10.96,21.388,21.372,20.0]
[1674182946985,0.96,21.387,21.372,20.0]
[1674182947195,0.96,21.386,21.367,18.89387287]
[1674182947410,10.0,21.388,21.367,18.89387287]
[1674182947613,10.0,21.386,21.367,18.89387287]
[1674182948162,10.0,21.386,21.368,17.0]
[1674182948549,10.0,21.386,21.369,18.89387287]
[1674182948763,10.0,21.386,21.37,17.0]
[1674182949314,10.0,21.386,21.37,35.89387287]
[1674182949502,1.92,21.385,21.363,161.44064527]
[1674182949712,1.92,21.385,21.365,18.89387287]
[1674182950339,10.0,21.383,21.363,161.44064527]
[1674182950549,1.92,21.382,21.363,161.44064527]
[1674182950765,10.0,21.383,21.363,161.44064527]
[1674182950982,10.0,21.383,21.364,18.89387287]
[1674182951290,10.0,21.383,21.365,10.0]
[1674182951510,10.0,21.383,21.366,17.0]
[1674182951713,10.0,21.383,21.366,35.89387287]
[1674182951924,10.0,21.383,21.367,18.89387287]
[1674182952250,10.0,21.383,21.368,17.0]
[1674182952667,10.0,21.383,21.369,18.89387287]
[1674182952886,10.0,21.383,21.37,17.0]
[1674182953286,119.3538,21.384,21.371,18.89387287]
[1674182953597,10.0,21.383,21.372,17.0]
[1674182953944,119.3538,21.384,21.372,35.89387287]
[1674182954775,111.0668,21.387,21.373,38.89387287]
[1674182955191,111.0668,21.387,21.374,35.89387287]
[1674182955403,45.06,21.394,21.374,35.89387287]
[1674182955404,10.0,21.393,21.375,10.0]
[1674182955615,123.9196,21.393,21.377,10.0]
[1674182955941,123.9196,21.393,21.378,17.0]
[1674182956344,123.9196,21.393,21.378,35.89387287]
[1674182956554,113.9196,21.393,21.378,35.89387287]
[1674182956764,113.9196,21.393,21.379,28.89387287]
[1674182956988,113.9196,21.393,21.38,17.0]
[1674182957413,10.0,21.392,21.38,17.0]
[1674182958340,10.0,21.392,21.379,18.89387287]
[1674182958551,1.92,21.391,21.373,20.0]
[1674182958777,1.92,21.391,21.372,20.0]
[1674182958977,10.0,21.392,21.373,10.0]
[1674182959191,10.0,21.392,21.373,28.89387287]
[1674182959719,123.9196,21.393,21.373,28.89387287]
[1674182959931,113.9196,21.393,21.374,0.96]
[1674182960335,113.9196,21.393,21.375,19.85387287]
[1674182960567,113.9196,21.393,21.373,10.0]
[1674182960768,10.0,21.391,21.373,10.0]
[1674182961079,10.0,21.391,21.374,0.96]
[1674182961294,113.9196,21.393,21.374,0.96]
[1674182961502,113.9196,21.393,21.376,10.0]
[1674182961852,113.9196,21.393,21.377,0.96]
[1674182962034,113.9196,21.393,21.378,0.96]
[1674182962233,113.9196,21.393,21.379,0.96]
[1674182962569,113.9196,21.393,21.379,17.96]
[1674182963713,113.9196,21.393,21.36,23.58440075]
[1674182963714,10.0,21.392,21.373,118.0129]
[1674182963914,10.0,21.392,21.374,0.96]
[1674182965084,10.0,21.39,21.374,17.96]
[1674182968035,35.07,21.389,21.374,17.0]
[1674182968356,11.92,21.388,21.374,17.0]
[1674182968552,35.07,21.387,21.374,17.0]
[1674182968763,10.0,21.386,21.374,17.0]
[1674182969175,10.0,21.386,21.373,17.0]
[1674182973284,35.07,21.387,21.373,17.0]
[1674182973613,35.07,21.387,21.374,10.96]
[1674182973827,10.0,21.39,21.375,17.0]
[1674182976656,35.05,21.397,21.376,19.85387287]
[1674182976892,35.05,21.399,21.377,17.96]
[1674182977104,35.05,21.399,21.379,10.0]
[1674182977322,10.0,21.394,21.379,10.0]
[1674182977535,10.0,21.394,21.38,17.0]
[1674182978769,35.05,21.397,21.38,17.0]
[1674182979212,35.05,21.401,21.381,21.92]
[1674182979420,35.05,21.401,21.382,10.0]
[1674182979631,35.05,21.401,21.383,18.92]
[1674182979842,35.05,21.401,21.384,10.0]
[1674182980049,35.05,21.401,21.385,17.0]
[1674182980366,119.9174,21.402,21.385,17.0]
[1674182980772,35.05,21.401,21.385,17.0]
[1674182981110,10.0,21.4,21.385,17.0]
[1674182983949,109.9174,21.402,21.385,17.0]
[1674182984137,109.9174,21.402,21.386,1.92]
[1674182984364,109.9174,21.402,21.387,10.0]
[1674182984558,109.9174,21.402,21.388,17.0]
[1674182984979,109.9174,21.402,21.389,0.96]
[1674182985409,144.9674,21.402,21.388,17.0]
[1674182985620,144.9674,21.402,21.384,10.0]
[1674182985818,0.96,21.401,21.384,10.0]
[1674182986242,0.96,21.4,21.384,10.0]
[1674182986655,144.9674,21.402,21.384,10.0]
[1674182986866,109.9174,21.402,21.384,28.89387287]
[1674182987626,109.9174,21.402,21.385,18.92]
[1674182988033,109.9174,21.402,21.386,10.0]
[1674182988248,109.80865456,21.402,21.387,18.92]
[1674182988450,45.04,21.404,21.387,18.92]
[1674182988660,45.04,21.404,21.387,17.96]
[1674182989502,45.04,21.404,21.388,0.96]
[1674182990546,45.04,21.404,21.389,0.96]
[1674182991403,45.04,21.404,21.388,0.96]
[1674182991621,1.92,21.403,21.371,37.56864527]
[1674182991817,35.05,21.402,21.376,5.57822981]
[1674182992026,1.92,21.401,21.38,20.0]
[1674182992230,10.0,21.399,21.38,20.0]
[1674182992437,10.0,21.397,21.38,20.0]
[1674182993072,10.0,21.397,21.381,18.92]
[1674182993299,10.0,21.397,21.382,20.0]
[1674182993511,10.0,21.397,21.383,18.92]
[1674182995813,10.0,21.397,21.384,20.0]
[1674182996025,10.0,21.397,21.385,17.0]
[1674182996224,35.05,21.398,21.385,17.0]
[1674182997380,35.05,21.398,21.386,11.92]
[1674182997597,35.05,21.401,21.387,17.0]
[1674182998667,35.05,21.401,21.389,10.0]
[1674182998868,108.8824,21.403,21.389,10.0]
[1674182998869,45.05,21.402,21.39,17.0]
[1674183001934,35.05,21.402,21.39,17.0]
[1674183003107,45.05,21.402,21.39,17.0]
[1674183003936,10.0,21.401,21.39,17.0]
[1674183004152,35.05,21.4,21.39,17.0]
[1674183004347,10.0,21.401,21.39,17.0]
[1674183006569,1.92,21.4,21.373,228.40903241]
[1674183006907,35.05,21.399,21.385,20.0]
[1674183007066,11.92,21.398,21.381,20.0]
[1674183007278,35.05,21.397,21.381,20.0]
[1674183007487,35.05,21.397,21.382,10.0]
[1674183007716,35.05,21.397,21.383,20.0]
[1674183007929,35.05,21.4,21.384,10.0]
[1674183008224,35.05,21.4,21.385,38.92]
[1674183008770,35.05,21.4,21.386,10.0]
[1674183008977,35.05,21.4,21.388,10.0]
[1674183009199,45.05,21.401,21.389,17.0]
[1674183010540,45.05,21.401,21.387,17.0]
[1674183011715,45.05,21.401,21.388,1.92]
[1674183012322,35.05,21.401,21.388,1.92]
[1674183012553,143.9224,21.403,21.388,1.92]
[1674183012761,143.9224,21.403,21.385,20.0]
[1674183012973,11.92,21.402,21.385,10.0]
[1674183013185,10.0,21.402,21.385,10.0]
[1674183013404,35.05,21.401,21.385,10.0]
[1674183014010,35.05,21.401,21.386,17.96]
[1674183014229,35.05,21.401,21.387,0.96]
[1674183014766,35.05,21.401,21.387,10.96]
[1674183015071,35.05,21.401,21.388,17.0]
[1674183015285,111.7885,21.406,21.39,10.0]
[1674183015286,35.04,21.405,21.39,10.0]
[1674183015495,111.7885,21.406,21.391,17.0]
[1674183015708,111.7885,21.406,21.392,20.96]
[1674183015709,35.04,21.405,21.392,20.96]
[1674183015915,121.7885,21.406,21.393,17.0]
[1674183016132,121.7885,21.406,21.394,20.0]
[1674183016347,121.7885,21.406,21.395,17.0]
[1674183016741,111.7885,21.406,21.395,17.0]
[1674183016962,111.7885,21.406,21.396,10.0]
[1674183017168,111.7885,21.406,21.397,17.0]
[1674183018216,111.7885,21.406,21.395,17.0]
[1674183018648,111.7885,21.406,21.394,20.0]
[1674183018649,10.0,21.408,21.394,76.80912598]
[1674183018842,10.0,21.427,21.396,10.0]
[1674183019057,123.1197,21.427,21.396,10.0]
[1674183019291,35.01,21.426,21.398,7.4875424]
[1674183019497,10.0,21.425,21.4,10.0]
[1674183019706,35.01,21.424,21.401,20.0]
[1674183019908,10.0,21.423,21.402,18.92]
[1674183020119,10.0,21.421,21.402,18.92]
[1674183020334,35.02,21.42,21.403,20.0]
[1674183020648,10.0,21.419,21.404,18.92]
[1674183020836,10.0,21.419,21.405,10.0]
[1674183021051,10.0,21.419,21.406,18.92]
[1674183022016,35.02,21.42,21.406,18.92]
[1674183022209,35.01,21.424,21.406,18.92]
[1674183022842,35.01,21.424,21.407,10.0]
[1674183023072,35.01,21.424,21.408,18.92]
[1674183023383,10.0,21.423,21.408,18.92]
[1674183025059,35.01,21.424,21.409,10.0]
[1674183025278,45.01,21.425,21.41,18.92]
[1674183025592,45.01,21.425,21.41,17.0]
[1674183025799,45.01,21.425,21.411,1.92]